bitfinex/quotes_SOLUSD_20220302
["timestamp","ask_amount","ask_price","bid_price","bid_amount"]
[1646252246555,18.8696,100.79,100.71,24.2131]
[1646252247153,18.8696,100.79,100.71,73.50905571]
[1646252247853,14.8996,100.79,100.71,75.58475545]
[1646252248054,14.8996,100.79,100.71,234.81475545]
[1646252248254,14.8996,100.79,100.71,237.36379548]
[1646252248960,5.69031739,100.81,100.71,237.36379548]
[1646252249158,5.0,100.83,100.71,249.36379548]
[1646252249357,5.0,100.83,100.71,270.08246866]
[1646252249559,3.969,100.84,100.71,270.08246866]
[1646252250158,65.6124,100.84,100.71,284.97706866]
[1646252250359,65.6124,100.84,100.71,289.97706866]
[1646252250860,65.6124,100.84,100.71,284.97706866]
[1646252251060,24.6047,100.83,100.71,284.97706866]
[1646252251262,18.8642,100.82,100.71,269.25839548]
[1646252251463,18.8642,100.82,100.71,264.25839548]
[1646252251659,18.8642,100.82,100.73,101.54061204]
[1646252251861,18.8642,100.82,100.74,48.30729643]
[1646252252064,18.8642,100.82,100.74,50.73331204]
[1646252253465,18.8642,100.82,100.74,48.55729643]
[1646252254266,18.8642,100.82,100.74,150.08668869]
[1646252254466,14.8952,100.82,100.74,150.08668869]
[1646252255063,14.8952,100.82,100.74,209.68668869]
[1646252255465,14.8952,100.82,100.74,50.45668869]
[1646252256266,14.8952,100.82,100.74,150.08668869]
[1646252256467,14.8952,100.82,100.74,50.45668869]
[1646252257271,18.8642,100.82,100.74,50.45668869]
[1646252258091,18.8642,100.82,100.74,48.55729643]
[1646252258293,18.8642,100.82,100.74,48.30729643]
[1646252258494,20.58463362,100.82,100.74,48.30729643]
[1646252258692,40.47777999,100.82,100.73,24.8718]
[1646252258897,66.0401773,100.82,100.73,24.8718]
[1646252259797,66.0401773,100.82,100.73,79.19737365]
[1646252259994,66.0401773,100.82,100.73,79.44737365]
[1646252260395,5.0,100.81,100.73,79.44737365]
[1646252260595,14.8996,100.79,100.73,79.44737365]
[1646252261196,14.8996,100.79,100.73,25.1218]
[1646252262398,14.8996,100.79,100.73,24.8718]
[1646252262995,14.8996,100.79,100.73,83.29166415]
[1646252263198,14.8996,100.79,100.73,24.8718]
[1646252264197,14.8996,100.79,100.74,44.15078347]
[1646252264900,14.8949,100.81,100.74,143.78078347]
[1646252265197,3.969,100.8,100.74,144.03078347]
[1646252265398,30.29413362,100.83,100.74,144.03078347]
[1646252265597,28.5737,100.83,100.74,144.03078347]
[1646252266196,28.5737,100.83,100.76,55.75318078]
[1646252266396,28.5737,100.83,100.76,56.00318078]
[1646252266997,43.4658,100.83,100.76,56.00318078]
[1646252267198,3.968,100.82,100.76,56.00318078]
[1646252267601,43.4648,100.83,100.76,56.00318078]
[1646252270602,39.4968,100.83,100.76,56.00318078]
[1646252271301,39.4968,100.83,100.76,155.63318078]
[1646252272603,14.8921,100.83,100.76,157.67565509]
[1646252273700,14.8921,100.83,100.76,57.79565509]
[1646252273900,14.8921,100.83,100.76,72.43165509]
[1646252274102,14.8921,100.83,100.76,172.06165509]
[1646252274301,14.8921,100.83,100.76,72.43165509]
[1646252275104,14.8921,100.83,100.76,72.68165509]
[1646252276105,14.8921,100.83,100.76,172.31165509]
[1646252276307,14.8921,100.83,100.76,72.68165509]
[1646252276504,14.8921,100.83,100.76,58.04565509]
[1646252276905,14.8921,100.83,100.76,56.00318078]
[1646252278609,14.8921,100.83,100.76,155.63318078]
[1646252278807,14.8921,100.83,100.76,158.05578299]
[1646252279209,41.6191,100.85,100.76,158.05578299]
[1646252280008,41.6191,100.85,100.78,55.07129835]
[1646252280307,41.6191,100.85,100.78,55.32129835]
[1646252281211,41.6191,100.85,100.78,55.07129835]
[1646252281408,43.33953362,100.85,100.78,55.07129835]
[1646252281609,61.6468,100.84,100.74,26.32706538]
[1646252281808,14.8963,100.82,100.75,22.5052]
[1646252282409,48.50987999,100.82,100.74,23.8488]
[1646252282608,3.969,100.81,100.75,48.54707483]
[1646252282809,53.6299,100.81,100.75,48.54707483]
[1646252283110,55.35033362,100.81,100.75,48.54707483]
[1646252283511,55.35033362,100.81,100.72,15.0564]
[1646252283911,67.35033362,100.81,100.72,15.0564]
[1646252284112,14.8983,100.8,100.72,15.0564]
[1646252284512,14.8983,100.8,100.73,45.73628704]
[1646252284914,14.8983,100.8,100.73,45.98628704]
[1646252285413,49.6493,100.83,100.73,159.57694309]
[1646252285613,24.3075,100.82,100.74,124.0095]
[1646252285814,24.3075,100.82,100.74,126.21563685]
[1646252287013,39.2017,100.82,100.74,126.21563685]
[1646252287414,3.969,100.84,100.74,126.21563685]
[1646252287613,1.72043362,100.85,100.76,99.63]
[1646252287817,52.0748,100.86,100.77,145.80116222]
[1646252288015,64.0748,100.86,100.77,146.05116222]
[1646252288417,65.79523362,100.86,100.77,146.05116222]
[1646252288817,85.68837999,100.86,100.77,46.42116222]
[1646252289016,14.8897,100.85,100.77,46.42116222]
[1646252289415,3.967,100.84,100.76,24.9261]
[1646252289616,15.967,100.84,100.76,24.9261]
[1646252289914,15.967,100.84,100.74,23.1811]
[1646252289915,37.58057999,100.84,100.74,23.1811]
[1646252290318,42.58057999,100.84,100.74,83.35589228]
[1646252290715,42.58057999,100.84,100.74,23.1811]
[1646252290916,87.22997999,100.84,100.74,23.1811]
[1646252291319,92.22997999,100.84,100.74,23.1811]
[1646252291717,92.22997999,100.84,100.75,52.60959794]
[1646252292117,87.22997999,100.84,100.75,52.60959794]
[1646252292518,92.22997999,100.84,100.75,52.60959794]
[1646252293519,92.22997999,100.84,100.75,52.85959794]
[1646252293923,92.22997999,100.84,100.75,75.46569794]
[1646252299040,16.6101335,100.85,100.77,23.6798]
[1646252299237,36.50327987,100.85,100.77,23.6798]
[1646252299436,37.14172429,100.85,100.77,23.6798]
[1646252299838,36.50327987,100.85,100.77,25.8921782]
[1646252300238,36.50327987,100.85,100.77,125.5221782]
[1646252300739,16.6101335,100.85,100.77,125.5221782]
[1646252301545,36.50327987,100.85,100.77,125.5221782]
[1646252302141,37.14172429,100.85,100.77,125.5221782]
[1646252302642,37.14172429,100.85,100.76,68.19544466]
[1646252303543,37.14172429,100.85,100.75,226.84389794]
[1646252303943,42.32453472,100.85,100.75,226.84389794]
[1646252304146,42.32453472,100.85,100.75,227.09389794]
[1646252304543,17.24857792,100.85,100.75,241.98359794]
[1646252304744,16.6101335,100.85,100.75,245.95159794]
[1646252304944,14.8897,100.85,100.75,247.85966071]
[1646252305144,25.75768045,100.87,100.75,247.85966071]
[1646252305344,20.5750335,100.87,100.75,252.85966071]
[1646252305945,20.5750335,100.87,100.79,159.23]
[1646252306145,25.75321283,100.89,100.81,159.23]
[1646252306354,32.2014,100.91,100.81,99.88]
[1646252306548,32.2014,100.91,100.81,159.48]
[1646252306750,32.2014,100.91,100.81,171.48]
[1646252307149,28.2354,100.91,100.81,196.0843]
[1646252307448,23.2354,100.91,100.81,196.0843]
[1646252307649,23.4854,100.91,100.81,196.0843]
[1646252308047,38.3663,100.91,100.81,210.9652]
[1646252308248,38.1163,100.91,100.81,210.9652]
[1646252308647,38.1163,100.91,100.81,198.63334003]
[1646252308947,14.8809,100.91,100.81,198.63334003]
[1646252310058,14.8809,100.91,100.82,174.1092]
[1646252310252,14.8809,100.91,100.82,174.3592]
[1646252310453,14.8809,100.91,100.82,114.7592]
[1646252310652,3.965,100.9,100.82,99.88]
[1646252310853,34.77404637,100.91,100.81,28.5693]
[1646252311053,60.78659757,100.9,100.81,24.6043]
[1646252311454,1.7204335,100.89,100.81,24.6043]
[1646252311655,16.6057335,100.89,100.81,24.6043]
[1646252312257,16.6057335,100.89,100.81,24.8543]
[1646252313875,17.2509847,100.89,100.81,24.8543]
[1646252314478,1.7204335,100.88,100.81,24.6043]
[1646252314677,14.8883,100.87,100.81,24.6043]
[1646252315878,14.8883,100.87,100.81,24.8543]
[1646252316076,0.25,100.87,100.81,24.8543]
[1646252316277,3.966,100.9,100.82,99.63]
[1646252316477,5.0,100.92,100.82,107.171]
[1646252316678,5.63844442,100.92,100.82,107.171]
[1646252316878,3.965,100.91,100.82,7.541]
[1646252317280,3.965,100.91,100.82,0.25]
[1646252317281,18.8457,100.91,100.82,0.25]
[1646252317479,19.89314637,100.9,100.82,0.25]
[1646252317679,3.965,100.89,100.81,24.8543]
[1646252319181,18.8492,100.89,100.81,24.8543]
[1646252320182,18.8492,100.89,100.81,48.5184]
[1646252321285,18.8492,100.89,100.81,148.1484]
[1646252321886,18.8492,100.89,100.81,48.5184]
[1646252322087,19.0992,100.89,100.81,48.5184]
[1646252322285,15.1342,100.89,100.81,48.5184]
[1646252322685,15.1342,100.89,100.81,148.1484]
[1646252322885,15.1342,100.89,100.81,48.5184]
[1646252323086,15.1342,100.89,100.81,148.1484]
[1646252324390,15.1342,100.89,100.81,48.5184]
[1646252325789,19.1002,100.89,100.81,48.5184]
[1646252330297,19.1002,100.89,100.81,48.2684]
[1646252330496,0.13882419,100.88,100.77,3.966]
[1646252330698,14.8911,100.87,100.78,24.4074]
[1646252330896,18.8581,100.87,100.78,24.4074]
[1646252331095,39.6981,100.87,100.78,24.4074]
[1646252331396,0.63844442,100.86,100.78,24.4074]
[1646252332394,14.8917,100.85,100.78,24.4074]
[1646252332600,14.8917,100.85,100.78,24.6574]
[1646252334301,14.8917,100.85,100.78,124.2874]
[1646252334801,18.8587,100.85,100.78,124.2874]
[1646252335001,18.8587,100.85,100.78,24.6574]
[1646252336003,18.8587,100.85,100.78,124.2874]
[1646252336203,18.8587,100.85,100.78,24.6574]
[1646252338105,19.1087,100.85,100.78,24.6574]
[1646252340205,15.1417,100.85,100.78,24.6574]
[1646252342909,15.1417,100.85,100.78,124.2874]
[1646252344009,15.1417,100.85,100.78,24.6574]
[1646252344509,53.6098,100.84,100.78,24.4074]
[1646252345315,55.33000666,100.84,100.77,24.7757]
[1646252346313,5.68720666,100.84,100.77,124.4057]
[1646252346513,14.8917,100.85,100.77,124.6557]
[1646252347115,16.61190666,100.85,100.77,25.0257]
[1646252348137,53.6128,100.84,100.77,25.0257]
[1646252348334,53.6128,100.84,100.77,24.7757]
[1646252348536,55.33300666,100.84,100.77,24.7757]
[1646252351938,55.58300666,100.84,100.77,24.7757]
[1646252352337,51.61600666,100.84,100.77,24.7757]
[1646252352838,49.6458,100.84,100.77,24.7757]
[1646252353037,14.8917,100.85,100.77,25.0257]
[1646252353441,14.8917,100.85,100.77,124.6557]
[1646252353442,16.61190666,100.85,100.77,124.6557]
[1646252355038,14.8917,100.85,100.77,184.2557]
[1646252355240,14.8917,100.85,100.77,198.80474003]
[1646252355943,14.8917,100.85,100.77,213.71684003]
[1646252356142,14.8917,100.85,100.77,228.60364003]
[1646252356543,15.1417,100.85,100.77,228.60364003]
[1646252359044,14.8862,100.87,100.79,99.63]
[1646252359247,14.8862,100.87,100.81,99.63]
[1646252359446,14.8862,100.87,100.81,99.88]
[1646252359844,14.8862,100.87,100.81,0.25]
[1646252360645,14.8862,100.87,100.8,84.41104903]
[1646252362048,15.1362,100.87,100.8,84.41104903]
[1646252362246,15.1362,100.87,100.8,98.95494903]
[1646252362948,15.1362,100.87,100.8,198.58494903]
[1646252363147,15.1362,100.87,100.8,98.95494903]
[1646252363348,15.1362,100.87,100.8,198.58494903]
[1646252363551,15.1362,100.87,100.8,98.95494903]
[1646252364251,15.1362,100.87,100.8,158.55494903]
[1646252364453,15.1362,100.87,100.81,99.63]
[1646252364655,15.1362,100.87,100.81,99.88]
[1646252364852,18.849,100.89,100.81,159.48]
[1646252365053,14.883,100.89,100.81,159.48]
[1646252366056,14.883,100.89,100.81,0.25]
[1646252366254,14.883,100.89,100.8,98.95494903]
[1646252366654,15.2697697,100.89,100.8,98.95494903]
[1646252367053,15.2697697,100.89,100.8,198.58494903]
[1646252368455,15.2697697,100.89,100.8,98.95494903]
[1646252368658,15.5197697,100.89,100.8,98.95494903]
[1646252369556,15.5197697,100.89,100.8,84.41104903]
[1646252370155,19.24897923,100.89,100.8,84.41104903]
[1646252370656,24.69839542,100.89,100.8,84.41104903]
[1646252370859,44.47731513,100.89,100.8,84.41104903]
[1646252371056,3.966,100.88,100.8,84.41104903]
[1646252371259,14.8875,100.87,100.8,84.41104903]
[1646252371758,16.60770666,100.87,100.8,84.41104903]
[1646252375359,16.60770666,100.87,100.8,184.04104903]
[1646252375560,14.8875,100.87,100.8,184.04104903]
[1646252375758,15.1375,100.87,100.8,184.04104903]
[1646252376861,0.25,100.87,100.8,184.04104903]
[1646252377059,20.56920666,100.89,100.8,255.64104903]
[1646252377260,14.883,100.89,100.8,258.19008906]
[1646252378061,14.883,100.89,100.8,198.59008906]
[1646252378262,14.883,100.89,100.8,211.11164903]
[1646252378661,15.133,100.89,100.8,211.11164903]
[1646252378863,15.133,100.89,100.8,270.71164903]
[1646252379061,15.133,100.89,100.8,285.59414903]
[1646252379461,14.883,100.89,100.8,285.59414903]
[1646252381064,15.133,100.89,100.8,285.59414903]
[1646252381284,15.133,100.89,100.8,288.14318906]
[1646252382266,15.133,100.89,100.8,285.59414903]
[1646252383767,15.133,100.89,100.8,288.14318906]
[1646252383970,15.133,100.89,100.82,99.63]
[1646252384168,15.133,100.89,100.82,124.7594]
[1646252385470,15.133,100.89,100.82,184.3594]
[1646252386069,15.133,100.89,100.82,25.1294]
[1646252386670,15.133,100.89,100.82,37.1294]
[1646252387170,15.133,100.89,100.83,99.63]
[1646252387371,15.133,100.89,100.84,43.46628024]
[1646252390275,15.133,100.89,100.84,143.09628024]
[1646252390675,15.133,100.89,100.84,43.46628024]
[1646252392979,15.133,100.89,100.84,143.09628024]
[1646252393479,15.133,100.89,100.84,43.46628024]
[1646252396083,0.25,100.89,100.84,143.09628024]
[1646252396317,14.8798,100.91,100.84,202.69628024]
[1646252396511,14.8798,100.91,100.84,202.94628024]
[1646252396712,48.9974,100.93,100.84,202.94628024]
[1646252396914,48.9974,100.93,100.86,99.63]
[1646252397109,48.9974,100.93,100.86,99.88]
[1646252397712,63.8743,100.93,100.86,99.88]
[1646252399414,63.8743,100.93,100.86,115.0576]
[1646252400214,63.8743,100.93,100.85,124.1057]
[1646252400415,3.964,100.92,100.85,24.4757]
[1646252400614,85.37342637,100.93,100.85,24.4757]
[1646252400615,14.881,100.91,100.85,24.4757]
[1646252401117,15.131,100.91,100.85,24.4757]
[1646252401718,15.131,100.91,100.84,43.46628024]
[1646252401921,15.131,100.91,100.84,43.71628024]
[1646252402118,19.096,100.91,100.84,43.71628024]
[1646252402819,19.096,100.91,100.84,43.46628024]
[1646252403922,19.096,100.91,100.82,23.2696]
[1646252404122,41.7768,100.91,100.82,23.2696]
[1646252404427,0.11798304,100.9,100.82,23.2696]
[1646252404625,49.73588304,100.9,100.82,23.2696]
[1646252404923,51.45620448,100.9,100.82,79.66694112]
[1646252405523,51.45620448,100.9,100.82,79.91694112]
[1646252406123,51.33822144,100.9,100.82,79.91694112]
[1646252407924,56.33822144,100.9,100.82,79.91694112]
[1646252408428,3.965,100.89,100.82,23.2696]
[1646252408626,14.8859,100.89,100.82,23.2696]
[1646252408828,3.966,100.88,100.81,24.0469]
[1646252409030,53.5933,100.88,100.77,111.63]
[1646252409230,80.03362144,100.88,100.78,22.9531]
[1646252409431,80.03362144,100.88,100.79,43.19494873]
[1646252410030,14.8882,100.87,100.79,43.44494873]
[1646252414538,3.967,100.86,100.79,43.44494873]
[1646252414737,14.8884,100.85,100.79,43.44494873]
[1646252415655,15.1384,100.85,100.79,43.44494873]
[1646252415854,15.1384,100.85,100.79,43.19494873]
[1646252416053,15.1384,100.85,100.78,22.9531]
[1646252416256,20.82572144,100.85,100.77,24.826]
[1646252416455,20.82572144,100.85,100.75,3.967]
[1646252416456,43.36144302,100.85,100.75,27.046]
[1646252416656,55.36144302,100.85,100.75,27.046]
[1646252417060,55.36144302,100.85,100.76,49.89446614]
[1646252417658,55.36144302,100.85,100.76,50.14446614]
[1646252417859,51.39444302,100.85,100.76,50.14446614]
[1646252418057,56.39444302,100.85,100.76,50.14446614]
[1646252418663,3.968,100.84,100.76,50.14446614]
[1646252419060,3.468,100.84,100.76,50.14446614]
[1646252419664,5.18832144,100.84,100.76,50.14446614]
[1646252420061,55.08132144,100.84,100.76,50.14446614]
[1646252423867,55.08132144,100.84,100.76,49.89446614]
[1646252424366,14.8961,100.82,100.76,49.89446614]
[1646252424567,18.8641,100.82,100.76,49.89446614]
[1646252424967,16.61642144,100.82,100.76,49.89446614]
[1646252426975,14.8961,100.82,100.76,49.89446614]
[1646252427174,18.8641,100.82,100.76,49.89446614]
[1646252428177,19.1141,100.82,100.76,49.89446614]
[1646252428376,15.1461,100.82,100.76,49.89446614]
[1646252428978,5.18412889,100.83,100.76,209.12446614]
[1646252429177,74.85168319,100.85,100.76,209.12446614]
[1646252429178,3.968,100.85,100.76,223.92350617]
[1646252429379,37.74300453,100.88,100.78,99.63]
[1646252429578,37.74300453,100.88,100.79,24.0882]
[1646252429778,32.74300453,100.88,100.8,48.24312595]
[1646252430178,14.8872,100.86,100.78,22.7167]
[1646252430383,3.967,100.85,100.78,22.7167]
[1646252430880,4.217,100.85,100.78,22.7167]
[1646252431080,4.217,100.85,100.79,44.89181124]
[1646252431679,53.8592,100.85,100.79,44.89181124]
[1646252433886,49.8922,100.85,100.79,44.89181124]
[1646252435281,49.8922,100.85,100.78,22.7167]
[1646252435482,5.69358319,100.84,100.73,22.6664]
[1646252435682,5.69358319,100.84,100.74,22.8562]
[1646252435683,25.59048319,100.84,100.74,22.8562]
[1646252435888,13.72658319,100.83,100.74,22.8562]
[1646252436083,84.2415189,100.83,100.74,22.8562]
[1646252436282,26.2994189,100.82,100.74,83.54403362]
[1646252436482,38.2994189,100.82,100.74,83.54403362]
[1646252436682,13.72658319,100.82,100.74,83.54403362]
[1646252436884,36.93458319,100.82,100.74,83.54403362]
[1646252437484,36.93458319,100.82,100.74,83.79403362]
[1646252438087,51.83268319,100.82,100.74,83.54403362]
[1646252438283,51.38668319,100.81,100.74,83.54403362]
[1646252439685,3.969,100.8,100.74,83.54403362]
[1646252440090,14.8981,100.79,100.74,83.54403362]
[1646252440484,3.969,100.8,100.74,83.54403362]
[1646252440688,40.208,100.82,100.74,83.54403362]
[1646252440689,28.208,100.82,100.74,83.54403362]
[1646252441314,28.208,100.82,100.74,183.17403362]
[1646252441586,28.208,100.82,100.74,83.54403362]
[1646252441887,28.208,100.82,100.74,183.17403362]
[1646252442186,14.8952,100.82,100.74,243.02403362]
[1646252442388,5.0,100.84,100.74,243.02403362]
[1646252442587,72.6121,100.85,100.74,243.02403362]
[1646252442788,74.33868319,100.85,100.74,243.02403362]
[1646252443190,3.968,100.84,100.74,243.02403362]
[1646252443389,18.8591,100.84,100.74,257.91523362]
[1646252443688,19.1091,100.84,100.74,257.91523362]
[1646252444588,19.1091,100.84,100.74,83.79403362]
[1646252444589,20.58568319,100.84,100.74,83.79403362]
[1646252444990,58.1905189,100.84,100.74,83.79403362]
[1646252445195,24.0017,100.83,100.74,83.79403362]
[1646252445391,14.8953,100.82,100.74,83.79403362]
[1646252445793,14.8953,100.82,100.74,183.42403362]
[1646252446592,18.8643,100.82,100.74,183.42403362]
[1646252447094,18.8643,100.82,100.74,83.79403362]
[1646252447296,20.84088319,100.82,100.74,83.79403362]
[1646252448494,25.84088319,100.82,100.74,83.79403362]
[1646252450114,20.84088319,100.82,100.74,83.79403362]
[1646252450314,25.84088319,100.82,100.74,83.79403362]
[1646252452017,32.84088319,100.82,100.74,83.79403362]
[1646252452217,14.8976,100.79,100.74,83.79403362]
[1646252452417,14.8976,100.79,100.74,23.1062]
[1646252452619,14.8976,100.79,100.73,22.6664]
[1646252452820,16.62418319,100.79,100.73,22.6664]
[1646252453522,16.62418319,100.79,100.73,76.04725725]
[1646252454327,14.8976,100.79,100.72,23.3714]
[1646252454723,28.62418319,100.79,100.72,23.3714]
[1646252455023,33.62418319,100.79,100.72,23.3714]
[1646252455322,14.9034,100.77,100.72,0.5]
[1646252455722,1.72658319,100.76,100.72,0.5]
[1646252455922,13.72658319,100.76,100.72,0.5]
[1646252456123,33.63301748,100.76,100.69,23.6854]
[1646252456321,1.72658319,100.75,100.69,23.6854]
[1646252456521,13.72658319,100.75,100.68,24.3689]
[1646252456722,17.69758319,100.75,100.68,68.67937363]
[1646252456925,1.72658319,100.74,100.68,68.67937363]
[1646252457121,1.72658319,100.74,100.68,58.67937363]
[1646252457322,39.1032,100.75,100.68,58.67937363]
[1646252458224,40.82978319,100.75,100.68,14.3689]
[1646252458524,14.9088,100.73,100.68,14.3689]
[1646252458926,16.63538319,100.73,100.68,14.3689]
[1646252459428,21.63538319,100.73,100.68,14.3689]
[1646252460024,21.88538319,100.73,100.68,14.3689]
[1646252460928,20.1588,100.73,100.68,14.3689]
[1646252463527,24.1298,100.73,100.68,14.3689]
[1646252465830,14.9088,100.73,100.68,14.3689]
[1646252466031,14.9088,100.73,100.68,14.6189]
[1646252467029,23.1322,100.75,100.68,114.2489]
[1646252467030,14.9033,100.75,100.68,114.2489]
[1646252467230,14.9033,100.75,100.68,137.6862]
[1646252469133,14.9033,100.75,100.68,197.2862]
[1646252469333,19.9004,100.77,100.68,197.2862]
[1646252469533,5.0,100.77,100.69,2.66737512]
[1646252469733,3.971,100.82,100.7,171.23]
[1646252469935,27.5716,100.82,100.71,235.98370708]
[1646252470135,27.5716,100.82,100.71,236.23370708]
[1646252470337,47.4698,100.82,100.71,253.67834711]
[1646252470535,23.8692,100.82,100.71,253.67834711]
[1646252470736,23.8692,100.82,100.71,251.12930708]
[1646252470937,23.8692,100.82,100.71,242.75174711]
[1646252471142,23.8692,100.82,100.71,250.78274711]
[1646252471336,18.8692,100.82,100.71,252.95272366]
[1646252471541,14.8982,100.82,100.74,159.23]
[1646252471739,14.8982,100.82,100.75,154.8534985]
[1646252471939,14.8982,100.82,100.75,155.1034985]
[1646252472937,14.8982,100.82,100.75,55.4734985]
[1646252473539,16.62415538,100.82,100.75,55.4734985]
[1646252473740,3.968,100.81,100.75,55.4734985]
[1646252473940,18.8627,100.81,100.75,55.4734985]
[1646252474141,19.1127,100.81,100.75,55.4734985]
[1646252474539,15.1447,100.81,100.75,55.4734985]
[1646252477541,15.1447,100.81,100.75,214.7034985]
[1646252477744,0.25,100.81,100.75,214.7034985]
[1646252477941,14.892,100.83,100.75,214.7034985]
[1646252478342,5.69495538,100.84,100.75,214.7034985]
[1646252478542,3.968,100.86,100.78,59.6]
[1646252478742,3.967,100.88,100.78,159.48]
[1646252478942,24.65643429,100.88,100.8,54.9782975]
[1646252479148,3.966,100.87,100.8,55.2282975]
[1646252479342,3.966,100.87,100.8,214.4582975]
[1646252479544,19.65643429,100.88,100.8,214.4582975]
[1646252480147,19.65643429,100.88,100.8,154.8582975]
[1646252480543,19.65643429,100.88,100.8,214.4582975]
[1646252481144,34.54113429,100.88,100.8,214.4582975]
[1646252481545,14.8847,100.88,100.8,214.4582975]
[1646252481750,54.6155,100.9,100.8,214.4582975]
[1646252482045,64.88789958,100.91,100.8,217.00733753]
[1646252482747,3.966,100.9,100.8,220.97333753]
[1646252483053,3.966,100.9,100.8,76.62563753]
[1646252483347,75.34756529,100.9,100.8,59.1942975]
[1646252484047,75.34756529,100.9,100.8,158.8242975]
[1646252484451,75.34756529,100.9,100.8,218.4242975]
[1646252484849,25.73306529,100.9,100.8,218.4242975]
[1646252485250,25.73306529,100.9,100.8,214.4582975]
[1646252485450,4.216,100.9,100.8,214.4582975]
[1646252486049,4.216,100.9,100.8,229.3406975]
[1646252487657,0.25,100.9,100.8,243.88973753]
[1646252487856,42.5622,100.91,100.82,99.63]
[1646252488252,42.5622,100.91,100.82,159.23]
[1646252488655,42.5622,100.91,100.82,123.2684]
[1646252489859,38.5962,100.91,100.82,123.2684]
[1646252490084,38.5962,100.91,100.82,182.8684]
[1646252490483,38.5962,100.91,100.82,197.6296]
[1646252491388,38.5962,100.91,100.82,23.6384]
[1646252491587,3.965,100.9,100.82,23.6384]
[1646252494599,53.5792,100.9,100.82,23.6384]
[1646252494792,75.09626529,100.9,100.82,23.6384]
[1646252495991,53.5792,100.9,100.82,23.6384]
[1646252496192,38.5962,100.91,100.82,182.8684]
[1646252498294,60.11326529,100.91,100.82,23.6384]
[1646252499997,3.965,100.9,100.82,23.6384]
[1646252501201,28.3329,100.9,100.82,23.6384]
[1646252502102,28.3329,100.9,100.82,123.2684]
[1646252502399,24.3679,100.9,100.82,123.2684]
[1646252503001,24.3679,100.9,100.82,23.6384]
[1646252505205,24.3679,100.9,100.82,123.2684]
[1646252506505,24.3679,100.9,100.82,23.6384]
[1646252507206,73.9811,100.9,100.82,23.6384]
[1646252507606,18.8522,100.89,100.8,54.9782975]
[1646252507808,30.8522,100.89,100.8,54.9782975]
[1646252508006,23.24302067,100.88,100.8,54.9782975]
[1646252508413,1.72595538,100.87,100.8,54.9782975]
[1646252509109,16.61315538,100.87,100.8,54.9782975]
[1646252510413,3.966,100.86,100.8,54.9782975]
[1646252510813,16.61315538,100.87,100.8,54.9782975]
[1646252511211,16.61315538,100.87,100.8,154.6082975]
[1646252511811,14.8872,100.87,100.8,154.6082975]
[1646252512016,18.8532,100.87,100.8,214.4582975]
[1646252512214,14.8872,100.87,100.8,214.4582975]
[1646252513917,14.8872,100.87,100.8,229.4291975]
[1646252514916,14.8827,100.89,100.8,229.4291975]
[1646252515115,14.8827,100.89,100.81,181.8967]
[1646252519546,22.5035,100.9,100.81,199.32644003]
[1646252519742,22.5035,100.9,100.83,159.23]
[1646252519943,38.5943,100.91,100.84,143.92120613]
[1646252520346,38.5943,100.91,100.84,203.52120613]
[1646252521643,38.5943,100.91,100.84,103.89120613]
[1646252522444,38.5943,100.91,100.84,67.57970613]
[1646252524644,38.5943,100.91,100.84,226.80970613]
[1646252524845,23.7144,100.91,100.84,226.80970613]
[1646252525044,23.7144,100.91,100.84,238.80970613]
[1646252525245,23.7144,100.91,100.84,247.62270613]
[1646252525547,39.506,100.93,100.84,247.62270613]
[1646252526046,39.506,100.93,100.84,262.49910613]
[1646252530446,39.506,100.93,100.84,265.04814616]
[1646252531049,39.506,100.93,100.84,262.49910613]
[1646252531546,39.506,100.93,100.84,265.04814616]
[1646252532447,39.506,100.93,100.84,262.49910613]
[1646252534049,39.506,100.93,100.84,265.04814616]
[1646252534249,39.506,100.93,100.84,262.49910613]
[1646252534448,39.506,100.93,100.84,265.04814616]
[1646252538052,39.506,100.93,100.84,256.23514616]
[1646252539253,39.506,100.93,100.86,159.23]